[Event "Early-Titled-Tuesday-Blitz-March-19-2024"]
[Site "Chess.com"]
[Date "2024.03.19"]
[Round "4"]
[White "Kiborg95"]
[Black "musclemonster12"]
[Result "0-1"]
[WhiteElo "2771"]
[BlackElo "2586"]
[TimeControl "180+1"]
[EndTime "8:39:23 PDT"]
[Termination "musclemonster12 won by resignation"]

1. e4 {[%clk 0:02:51]} 1... c6 {[%clk 0:02:59.1]} 2. d4 {[%clk 0:02:50.2]} 2...
d5 {[%clk 0:02:59.2]} 3. e5 {[%clk 0:02:51]} 3... c5 {[%clk 0:02:57.4]} 4. Nf3
{[%clk 0:02:46.1]} 4... cxd4 {[%clk 0:02:51.4]} 5. Qxd4 {[%clk 0:02:47]} 5...
Nc6 {[%clk 0:02:51.4]} 6. Qf4 {[%clk 0:02:47.6]} 6... e6 {[%clk 0:02:51.8]} 7.
Nc3 {[%clk 0:02:48]} 7... Bd7 {[%clk 0:02:43.1]} 8. Bd3 {[%clk 0:02:48.1]} 8...
Nb4 {[%clk 0:02:43.1]} 9. Bd2 {[%clk 0:02:40.7]} 9... Nxd3+ {[%clk 0:02:41.1]}
10. cxd3 {[%clk 0:02:41.6]} 10... Ne7 {[%clk 0:02:41.4]} 11. h4 {[%clk
0:02:40.6]} 11... Nc6 {[%clk 0:02:41]} 12. O-O {[%clk 0:02:37]} 12... Rc8 {[%clk
0:02:32.2]} 13. a3 {[%clk 0:02:33]} 13... a6 {[%clk 0:02:22]} 14. h5 {[%clk
0:02:31.2]} 14... h6 {[%clk 0:02:14.6]} 15. Ne2 {[%clk 0:02:30.8]} 15... Be7
{[%clk 0:01:33]} 16. Qg3 {[%clk 0:02:28.6]} 16... Kf8 {[%clk 0:01:32.1]} 17.
Rac1 {[%clk 0:02:27.7]} 17... Qb6 {[%clk 0:01:29.7]} 18. b4 {[%clk 0:02:27.9]}
18... Qd8 {[%clk 0:01:28.7]} 19. Ned4 {[%clk 0:02:24.8]} 19... Nxd4 {[%clk
0:01:23.8]} 20. Nxd4 {[%clk 0:02:25.7]} 20... Kg8 {[%clk 0:01:18.6]} 21. f4
{[%clk 0:02:22.7]} 21... Kh7 {[%clk 0:01:15.3]} 22. f5 {[%clk 0:02:19.2]} 22...
exf5 {[%clk 0:01:05.7]} 23. Nxf5 {[%clk 0:02:19.6]} 23... Bxf5 {[%clk
0:01:01.5]} 24. Rxf5 {[%clk 0:02:20.5]} 24... Rxc1+ {[%clk 0:01:01.6]} 25. Bxc1
{[%clk 0:02:21.4]} 25... Qb6+ {[%clk 0:01:02]} 26. Be3 {[%clk 0:02:16.7]} 26...
Qe6 {[%clk 0:01:01.7]} 27. Qf3 {[%clk 0:02:10.2]} 27... Rf8 {[%clk 0:01:01.6]}
28. g4 {[%clk 0:02:09.3]} 28... Kg8 {[%clk 0:00:59.3]} 29. g5 {[%clk 0:01:48.3]}
29... hxg5 {[%clk 0:00:41.2]} 30. Bxg5 {[%clk 0:01:49.2]} 30... Rc8 {[%clk
0:00:40.4]} 31. Bxe7 {[%clk 0:01:40.1]} 31... Qxe7 {[%clk 0:00:41.3]} 32. Qxd5
{[%clk 0:01:40.6]} 32... Qh4 {[%clk 0:00:25.9]} 33. Rxf7 {[%clk 0:00:45.4]}
33... Qg3+ {[%clk 0:00:21.5]} 34. Kf1 {[%clk 0:00:40.3]} 34... Rc1+ {[%clk
0:00:20.5]} 35. Ke2 {[%clk 0:00:40.9]} 35... Qe1+ {[%clk 0:00:17.1]} 36. Kf3
{[%clk 0:00:41.4]} 36... Qf1+ {[%clk 0:00:16.6]} 37. Ke4 {[%clk 0:00:42]} 37...
Qxf7 {[%clk 0:00:16.7]} 38. e6 {[%clk 0:00:39.6]} 38... Re1+ {[%clk 0:00:15.4]}
0-1

[Event "Early-Titled-Tuesday-Blitz-March-19-2024"]
[Site "Chess.com"]
[Date "2024.03.19"]
[Round "4"]
[White "ahkashefi2800"]
[Black "Chessdude1987"]
[Result "1-0"]
[WhiteElo "2569"]
[BlackElo "2384"]
[TimeControl "180+1"]
[EndTime "8:39:29 PDT"]
[Termination "ahkashefi2800 won on time"]

1. d4 {[%clk 0:02:58.9]} 1... e6 {[%clk 0:02:59.7]} 2. Nf3 {[%clk 0:02:51.2]}
2... f5 {[%clk 0:02:59.6]} 3. g3 {[%clk 0:02:49.8]} 3... Nf6 {[%clk 0:02:59.9]}
4. Bg2 {[%clk 0:02:49.5]} 4... Be7 {[%clk 0:03:00.1]} 5. O-O {[%clk 0:02:49.3]}
5... O-O {[%clk 0:03:00.5]} 6. c4 {[%clk 0:02:47.5]} 6... d6 {[%clk 0:03:00.9]}
7. Nc3 {[%clk 0:02:46.9]} 7... Ne4 {[%clk 0:03:01.2]} 8. Qc2 {[%clk 0:02:44.6]}
8... Nxc3 {[%clk 0:03:00.8]} 9. Qxc3 {[%clk 0:02:44.6]} 9... a5 {[%clk
0:03:01.3]} 10. b3 {[%clk 0:02:43.7]} 10... Nc6 {[%clk 0:03:00.2]} 11. Bb2
{[%clk 0:02:44]} 11... Bf6 {[%clk 0:02:59.4]} 12. e3 {[%clk 0:02:43.5]} 12... e5
{[%clk 0:02:56.5]} 13. Rad1 {[%clk 0:02:39.4]} 13... e4 {[%clk 0:02:44.5]} 14.
Ne1 {[%clk 0:02:38.5]} 14... d5 {[%clk 0:02:44.5]} 15. cxd5 {[%clk 0:02:37.8]}
15... Nb4 {[%clk 0:02:35]} 16. Qc4 {[%clk 0:02:30.8]} 16... Nxd5 {[%clk
0:02:25]} 17. Nd3 {[%clk 0:02:27.4]} 17... Kh8 {[%clk 0:02:16.3]} 18. Nf4 {[%clk
0:02:23.2]} 18... Nxf4 {[%clk 0:02:12.5]} 19. gxf4 {[%clk 0:02:22.9]} 19... b6
{[%clk 0:02:05.7]} 20. Rfe1 {[%clk 0:02:18.6]} 20... Ba6 {[%clk 0:01:59]} 21.
Qc2 {[%clk 0:02:18.6]} 21... Bd3 {[%clk 0:01:56]} 22. Qc1 {[%clk 0:02:17.6]}
22... Ra7 {[%clk 0:01:44.1]} 23. Qc6 {[%clk 0:02:16.1]} 23... a4 {[%clk
0:01:13.4]} 24. bxa4 {[%clk 0:02:08.5]} 24... Qa8 {[%clk 0:01:03]} 25. Qxa8
{[%clk 0:02:06.2]} 25... Raxa8 {[%clk 0:01:01.4]} 26. Rxd3 {[%clk 0:01:58.7]}
26... exd3 {[%clk 0:01:01.3]} 27. Bxa8 {[%clk 0:01:58.5]} 27... Rxa8 {[%clk
0:01:00.3]} 28. Rd1 {[%clk 0:01:59]} 28... Rxa4 {[%clk 0:00:53.6]} 29. a3 {[%clk
0:01:58.9]} 29... c5 {[%clk 0:00:50.8]} 30. Rxd3 {[%clk 0:01:57.9]} 30... c4
{[%clk 0:00:35.9]} 31. Rc3 {[%clk 0:01:52.2]} 31... b5 {[%clk 0:00:35.8]} 32.
Kg2 {[%clk 0:01:50.1]} 32... Kg8 {[%clk 0:00:35.7]} 33. Kf3 {[%clk 0:01:48.7]}
33... Kf7 {[%clk 0:00:35.7]} 34. Ke2 {[%clk 0:01:44.7]} 34... Ke6 {[%clk
0:00:34.5]} 35. Kd1 {[%clk 0:01:42.6]} 35... Kd5 {[%clk 0:00:34.4]} 36. Kc2
{[%clk 0:01:42.4]} 36... Bh4 {[%clk 0:00:29.5]} 37. f3 {[%clk 0:01:41.6]} 37...
Be1 {[%clk 0:00:26.8]} 38. e4+ {[%clk 0:01:37.5]} 38... fxe4 {[%clk 0:00:26.7]}
39. Re3 {[%clk 0:01:37.6]} 39... c3 {[%clk 0:00:17]} 40. fxe4+ {[%clk
0:01:31.6]} 40... Kxd4 {[%clk 0:00:15.4]} 41. Rxe1 {[%clk 0:01:31.8]} 41... cxb2
{[%clk 0:00:14.6]} 42. Kxb2 {[%clk 0:01:31.7]} 42... Kd3 {[%clk 0:00:12.6]} 43.
e5 {[%clk 0:01:30.1]} 43... Rxf4 {[%clk 0:00:12.1]} 44. e6 {[%clk 0:01:30]}
44... Rf8 {[%clk 0:00:11.8]} 45. Kb3 {[%clk 0:01:26.5]} 45... Re8 {[%clk
0:00:10.1]} 46. Kb4 {[%clk 0:01:26.6]} 46... g5 {[%clk 0:00:10.2]} 47. Kxb5
{[%clk 0:01:26.4]} 47... h5 {[%clk 0:00:10.5]} 48. Kc6 {[%clk 0:01:26.6]} 48...
g4 {[%clk 0:00:10.3]} 49. Kd7 {[%clk 0:01:26.2]} 49... Ra8 {[%clk 0:00:09.9]}
50. e7 {[%clk 0:01:26.1]} 50... Ra7+ {[%clk 0:00:10]} 51. Ke6 {[%clk 0:01:25.9]}
51... Ra6+ {[%clk 0:00:10.2]} 52. Kf5 {[%clk 0:01:25.9]} 1-0

[Event "Early-Titled-Tuesday-Blitz-March-19-2024"]
[Site "Chess.com"]
[Date "2024.03.19"]
[Round "4"]
[White "MITerryble"]
[Black "kpio91"]
[Result "0-1"]
[WhiteElo "2983"]
[BlackElo "2848"]
[TimeControl "180+1"]
[EndTime "8:39:30 PDT"]
[Termination "kpio91 won by resignation"]

1. d4 {[%clk 0:03:00.9]} 1... g6 {[%clk 0:03:00.9]} 2. Nf3 {[%clk 0:02:59.8]}
2... Bg7 {[%clk 0:03:00.9]} 3. c3 {[%clk 0:03:00.4]} 3... Nf6 {[%clk 0:02:58.3]}
4. Bg5 {[%clk 0:03:00.4]} 4... O-O {[%clk 0:02:53.4]} 5. Nbd2 {[%clk 0:03:00.9]}
5... c5 {[%clk 0:02:53.7]} 6. dxc5 {[%clk 0:02:58.9]} 6... Qc7 {[%clk
0:02:47.6]} 7. Nb3 {[%clk 0:02:58.9]} 7... a5 {[%clk 0:02:47.2]} 8. a4 {[%clk
0:02:57.7]} 8... b6 {[%clk 0:02:45.7]} 9. cxb6 {[%clk 0:02:53.3]} 9... Qxb6
{[%clk 0:02:45.4]} 10. Nfd4 {[%clk 0:02:48.2]} 10... Bb7 {[%clk 0:02:30.6]} 11.
e3 {[%clk 0:02:45.8]} 11... Nc6 {[%clk 0:02:22.4]} 12. Nb5 {[%clk 0:02:44.1]}
12... Ne4 {[%clk 0:01:56.2]} 13. Bh4 {[%clk 0:02:44.1]} 13... Rad8 {[%clk
0:01:40.7]} 14. Bd3 {[%clk 0:02:42.9]} 14... f5 {[%clk 0:01:38.6]} 15. O-O
{[%clk 0:02:40.3]} 15... Nf6 {[%clk 0:01:34.2]} 16. Bg3 {[%clk 0:02:29.8]} 16...
d6 {[%clk 0:01:29.2]} 17. N3d4 {[%clk 0:02:29]} 17... Nxd4 {[%clk 0:01:17.6]}
18. cxd4 {[%clk 0:02:29.5]} 18... e5 {[%clk 0:01:13.7]} 19. dxe5 {[%clk
0:02:16.4]} 19... dxe5 {[%clk 0:01:12.3]} 20. Bxe5 {[%clk 0:02:17]} 20... Nd5
{[%clk 0:01:01.2]} 21. Bxg7 {[%clk 0:02:13.7]} 21... Kxg7 {[%clk 0:01:00.6]} 22.
Qe2 {[%clk 0:02:02.8]} 22... Rfe8 {[%clk 0:00:59]} 23. Qd2 {[%clk 0:01:33.5]}
23... Nxe3 {[%clk 0:00:42.3]} 24. fxe3 {[%clk 0:01:33]} 24... Rxe3 {[%clk
0:00:42.2]} 25. Qf2 {[%clk 0:01:30.9]} 25... Rdxd3 {[%clk 0:00:40.6]} 26. Rae1
{[%clk 0:01:18.1]} 26... Rd2 {[%clk 0:00:26.8]} 27. Qxd2 {[%clk 0:01:17.6]}
27... Re2+ {[%clk 0:00:26.7]} 28. Qd4+ {[%clk 0:01:17.7]} 28... Qxd4+ {[%clk
0:00:26.8]} 29. Nxd4 {[%clk 0:01:18.6]} 29... Rxg2+ {[%clk 0:00:27.4]} 30. Kh1
{[%clk 0:01:19.1]} 30... Rg3+ {[%clk 0:00:20.1]} 31. Nf3 {[%clk 0:01:14.2]}
31... Bxf3+ {[%clk 0:00:20.6]} 32. Rxf3 {[%clk 0:01:14.8]} 32... Rxf3 {[%clk
0:00:21.5]} 33. Re5 {[%clk 0:01:12.9]} 33... Rb3 {[%clk 0:00:21.2]} 34. Rb5
{[%clk 0:01:13]} 34... Rd3 {[%clk 0:00:19]} 35. Kg2 {[%clk 0:01:06.7]} 35... h5
{[%clk 0:00:18.9]} 36. h4 {[%clk 0:01:06.8]} 36... Kf6 {[%clk 0:00:18.5]} 37.
Kf2 {[%clk 0:01:00.5]} 37... Rh3 {[%clk 0:00:15.9]} 38. b3 {[%clk 0:01:00]}
38... Rxh4 {[%clk 0:00:14.5]} 39. Rxa5 {[%clk 0:01:00.4]} 39... Rb4 {[%clk
0:00:15.1]} 40. Ra6+ {[%clk 0:00:56.4]} 40... Kg5 {[%clk 0:00:15]} 41. a5 {[%clk
0:00:48.2]} 41... Rxb3 {[%clk 0:00:15.4]} 42. Ra8 {[%clk 0:00:48.7]} 42... Ra3
{[%clk 0:00:15.9]} 43. Ke2 {[%clk 0:00:49.6]} 43... Kg4 {[%clk 0:00:16.2]} 44.
Kd2 {[%clk 0:00:50.5]} 44... g5 {[%clk 0:00:16.7]} 45. Kc2 {[%clk 0:00:50.8]}
45... h4 {[%clk 0:00:17.4]} 46. Kb2 {[%clk 0:00:51.4]} 46... Ra4 {[%clk
0:00:17.7]} 47. Kb3 {[%clk 0:00:52]} 47... Ra1 {[%clk 0:00:17.8]} 48. Kb2 {[%clk
0:00:52.5]} 48... Re1 {[%clk 0:00:18.2]} 0-1

[Event "Early-Titled-Tuesday-Blitz-March-19-2024"]
[Site "Chess.com"]
[Date "2024.03.19"]
[Round "4"]
[White "nekotyanof"]
[Black "sergoy"]
[Result "1-0"]
[WhiteElo "2663"]
[BlackElo "2924"]
[TimeControl "180+1"]
[EndTime "8:39:32 PDT"]
[Termination "nekotyanof won by checkmate"]

1. e4 {[%clk 0:03:00.9]} 1... c5 {[%clk 0:02:40.9]} 2. d4 {[%clk 0:03:00.5]}
2... cxd4 {[%clk 0:02:40.9]} 3. Qxd4 {[%clk 0:03:01.4]} 3... Nc6 {[%clk
0:02:40.8]} 4. Qd3 {[%clk 0:03:02.1]} 4... d6 {[%clk 0:02:40.3]} 5. Nc3 {[%clk
0:03:02]} 5... Nf6 {[%clk 0:02:41]} 6. Nf3 {[%clk 0:03:02.6]} 6... g6 {[%clk
0:02:41.7]} 7. Be2 {[%clk 0:03:02.9]} 7... Bg7 {[%clk 0:02:42.3]} 8. O-O {[%clk
0:03:03.6]} 8... O-O {[%clk 0:02:42.8]} 9. Nd5 {[%clk 0:03:04.2]} 9... Be6
{[%clk 0:02:42]} 10. c3 {[%clk 0:03:02]} 10... Rc8 {[%clk 0:02:40.6]} 11. Bg5
{[%clk 0:03:01.6]} 11... Nd7 {[%clk 0:02:39.6]} 12. Rfd1 {[%clk 0:02:46]} 12...
Bg4 {[%clk 0:02:37]} 13. Nd4 {[%clk 0:02:39.2]} 13... Bxe2 {[%clk 0:02:33.7]}
14. Qxe2 {[%clk 0:02:36]} 14... Re8 {[%clk 0:02:33.7]} 15. Nb5 {[%clk 0:02:21]}
15... h6 {[%clk 0:02:28.6]} 16. Nxd6 {[%clk 0:02:16.3]} 16... Nc5 {[%clk
0:01:07]} 17. Nxc8 {[%clk 0:02:01.3]} 17... Qxc8 {[%clk 0:00:56.9]} 18. Be3
{[%clk 0:02:00.9]} 18... Nd7 {[%clk 0:00:56.3]} 19. Rac1 {[%clk 0:01:59]} 19...
a6 {[%clk 0:00:43.2]} 20. f4 {[%clk 0:01:55.1]} 20... e6 {[%clk 0:00:43]} 21.
Nb4 {[%clk 0:01:55.3]} 21... e5 {[%clk 0:00:40.8]} 22. Qg4 {[%clk 0:01:50]}
22... Ncb8 {[%clk 0:00:25.2]} 23. fxe5 {[%clk 0:01:43.8]} 23... Qc4 {[%clk
0:00:18.8]} 24. Rxd7 {[%clk 0:01:39.8]} 24... Nxd7 {[%clk 0:00:17.7]} 25. Qxd7
{[%clk 0:01:40.7]} 25... Rxe5 {[%clk 0:00:17.1]} 26. Qd4 {[%clk 0:01:31.8]}
26... Qe6 {[%clk 0:00:14]} 27. Qb6 {[%clk 0:01:20.1]} 27... Qg4 {[%clk
0:00:09.5]} 28. Bd4 {[%clk 0:01:13.5]} 28... Rxe4 {[%clk 0:00:09.1]} 29. Bxg7
{[%clk 0:01:13.9]} 29... Re2 {[%clk 0:00:09.4]} 30. Qxb7 {[%clk 0:01:14]} 30...
Qf4 {[%clk 0:00:08]} 31. Rf1 {[%clk 0:01:07.5]} 31... Qe3+ {[%clk 0:00:08.1]}
32. Kh1 {[%clk 0:01:08]} 32... Qf2 {[%clk 0:00:06]} 33. Qf3 {[%clk 0:00:53.2]}
33... Qxf3 {[%clk 0:00:06]} 34. gxf3 {[%clk 0:00:53.4]} 34... Kxg7 {[%clk
0:00:06.7]} 35. b3 {[%clk 0:00:50.9]} 35... a5 {[%clk 0:00:06.6]} 36. Nc6 {[%clk
0:00:49.5]} 36... Rxa2 {[%clk 0:00:06.8]} 37. Kg1 {[%clk 0:00:45.8]} 37... Kf6
{[%clk 0:00:06.4]} 38. Rf2 {[%clk 0:00:46.3]} 38... Ra1+ {[%clk 0:00:05.9]} 39.
Kg2 {[%clk 0:00:46.4]} 39... Kf5 {[%clk 0:00:03.5]} 40. Nd4+ {[%clk 0:00:45.2]}
40... Kf4 {[%clk 0:00:03.7]} 41. Re2 {[%clk 0:00:45.4]} 41... f5 {[%clk
0:00:04]} 42. Ne6# {[%clk 0:00:45.9]} 1-0

[Event "Early-Titled-Tuesday-Blitz-March-19-2024"]
[Site "Chess.com"]
[Date "2024.03.19"]
[Round "4"]
[White "rhwr"]
[Black "yaguigor"]
[Result "0-1"]
[WhiteElo "2340"]
[BlackElo "2563"]
[TimeControl "180+1"]
[EndTime "8:39:34 PDT"]
[Termination "yaguigor won on time"]

1. e4 {[%clk 0:02:59.6]} 1... d6 {[%clk 0:02:58.5]} 2. d4 {[%clk 0:02:59.3]}
2... Nf6 {[%clk 0:02:58.8]} 3. Nc3 {[%clk 0:02:59.6]} 3... c6 {[%clk 0:02:55.7]}
4. Be2 {[%clk 0:02:59.8]} 4... Qa5 {[%clk 0:02:50.7]} 5. Bd2 {[%clk 0:02:48.6]}
5... Qb6 {[%clk 0:02:49.6]} 6. e5 {[%clk 0:02:46.2]} 6... dxe5 {[%clk
0:02:35.8]} 7. dxe5 {[%clk 0:02:45.8]} 7... Nd5 {[%clk 0:02:36.5]} 8. Nxd5
{[%clk 0:02:40.4]} 8... cxd5 {[%clk 0:02:35.4]} 9. b3 {[%clk 0:02:07.4]} 9...
Nc6 {[%clk 0:02:33]} 10. Nf3 {[%clk 0:02:06.8]} 10... Bg4 {[%clk 0:02:32.1]} 11.
O-O {[%clk 0:02:05.6]} 11... e6 {[%clk 0:02:30.8]} 12. Be3 {[%clk 0:02:02.1]}
12... Bc5 {[%clk 0:02:24.3]} 13. Bxc5 {[%clk 0:01:50.3]} 13... Qxc5 {[%clk
0:02:25.2]} 14. Re1 {[%clk 0:01:38.5]} 14... O-O {[%clk 0:02:20.9]} 15. h3
{[%clk 0:01:38.3]} 15... Bh5 {[%clk 0:02:20.1]} 16. Rc1 {[%clk 0:01:33.9]} 16...
Qc3 {[%clk 0:02:13.6]} 17. Qd3 {[%clk 0:01:29.7]} 17... Qxd3 {[%clk 0:02:08.6]}
18. cxd3 {[%clk 0:01:29]} 18... Bxf3 {[%clk 0:02:06.2]} 19. Bxf3 {[%clk
0:01:28.7]} 19... Rfc8 {[%clk 0:02:05.4]} 20. a3 {[%clk 0:01:23.8]} 20... Nd4
{[%clk 0:02:03.5]} 21. b4 {[%clk 0:01:15.6]} 21... Kf8 {[%clk 0:01:48.7]} 22.
Rc5 {[%clk 0:00:58.7]} 22... b6 {[%clk 0:01:46.9]} 23. Rcc1 {[%clk 0:00:51.2]}
23... Nc2 {[%clk 0:01:36.2]} 24. Red1 {[%clk 0:00:37.4]} 24... Nxa3 {[%clk
0:01:35.7]} 25. Be2 {[%clk 0:00:35]} 25... Nb5 {[%clk 0:01:32.6]} 26. f4 {[%clk
0:00:26.2]} 26... Ke7 {[%clk 0:01:21.1]} 27. Bf1 {[%clk 0:00:23.7]} 27... Nd4
{[%clk 0:01:17.7]} 28. Kf2 {[%clk 0:00:21.4]} 28... a5 {[%clk 0:01:12.9]} 29.
Rxc8 {[%clk 0:00:14.3]} 29... Rxc8 {[%clk 0:01:11.5]} 30. bxa5 {[%clk
0:00:15.2]} 30... bxa5 {[%clk 0:01:10.6]} 31. Ra1 {[%clk 0:00:14.6]} 31... Ra8
{[%clk 0:01:05.8]} 32. Ra4 {[%clk 0:00:14.2]} 32... Nb3 {[%clk 0:01:02.5]} 33.
d4 {[%clk 0:00:14.1]} 33... Rb8 {[%clk 0:00:59.3]} 34. Bd3 {[%clk 0:00:12.3]}
34... Rb4 {[%clk 0:00:59.8]} 35. Rxb4 {[%clk 0:00:08.9]} 35... axb4 {[%clk
0:01:00.7]} 36. Ke3 {[%clk 0:00:09.3]} 36... h6 {[%clk 0:00:57.8]} 37. g4 {[%clk
0:00:09.1]} 37... g5 {[%clk 0:00:48.8]} 38. f5 {[%clk 0:00:04]} 38... f6 {[%clk
0:00:44.7]} 0-1

[Event "Early-Titled-Tuesday-Blitz-March-19-2024"]
[Site "Chess.com"]
[Date "2024.03.19"]
[Round "4"]
[White "platy3"]
[Black "wannabe2700"]
[Result "1-0"]
[WhiteElo "2963"]
[BlackElo "2638"]
[TimeControl "180+1"]
[EndTime "8:39:36 PDT"]
[Termination "platy3 won by resignation"]

1. e4 {[%clk 0:03:00.9]} 1... d5 {[%clk 0:02:59.6]} 2. exd5 {[%clk 0:03:00.5]}
2... Qxd5 {[%clk 0:03:00.5]} 3. h3 {[%clk 0:03:00.2]} 3... e5 {[%clk 0:02:50.3]}
4. Nc3 {[%clk 0:02:57.9]} 4... Qd8 {[%clk 0:02:50.3]} 5. Nf3 {[%clk 0:02:57.7]}
5... Bd6 {[%clk 0:02:50.2]} 6. Bc4 {[%clk 0:02:56.7]} 6... Nf6 {[%clk
0:02:49.7]} 7. d3 {[%clk 0:02:56.4]} 7... h6 {[%clk 0:02:48.5]} 8. O-O {[%clk
0:02:56.3]} 8... O-O {[%clk 0:02:48.6]} 9. Re1 {[%clk 0:02:55.8]} 9... Nc6
{[%clk 0:02:46.7]} 10. Ne4 {[%clk 0:02:52.6]} 10... Re8 {[%clk 0:02:35.4]} 11.
c3 {[%clk 0:02:50]} 11... Be6 {[%clk 0:02:33.9]} 12. Bxe6 {[%clk 0:02:47.2]}
12... Rxe6 {[%clk 0:02:34]} 13. b4 {[%clk 0:02:46.5]} 13... a6 {[%clk
0:02:13.9]} 14. a3 {[%clk 0:02:44.6]} 14... Bf8 {[%clk 0:02:09.7]} 15. Qc2
{[%clk 0:02:38.5]} 15... Nd5 {[%clk 0:01:53.7]} 16. Bd2 {[%clk 0:02:32.4]} 16...
f5 {[%clk 0:01:53.3]} 17. Ng3 {[%clk 0:02:32.2]} 17... Qf6 {[%clk 0:01:49]} 18.
c4 {[%clk 0:02:22.5]} 18... Nb6 {[%clk 0:01:27.1]} 19. Bc3 {[%clk 0:02:21.7]}
19... Rae8 {[%clk 0:01:19.8]} 20. Re2 {[%clk 0:02:11.5]} 20... Nd4 {[%clk
0:00:57.9]} 21. Bxd4 {[%clk 0:02:09.6]} 21... exd4 {[%clk 0:00:58.8]} 22. Rae1
{[%clk 0:02:08.2]} 22... c5 {[%clk 0:00:55.2]} 23. Rxe6 {[%clk 0:01:41.1]} 23...
Rxe6 {[%clk 0:00:55.2]} 24. Rb1 {[%clk 0:01:40.2]} 24... Nd7 {[%clk 0:00:54.1]}
25. Nh5 {[%clk 0:01:31.2]} 25... Qe7 {[%clk 0:00:49.1]} 26. Nf4 {[%clk
0:01:29.8]} 26... Rd6 {[%clk 0:00:40.9]} 27. Nd5 {[%clk 0:01:27.3]} 27... Qf7
{[%clk 0:00:38.8]} 28. bxc5 {[%clk 0:01:26.6]} 28... Nxc5 {[%clk 0:00:39]} 29.
Nxd4 {[%clk 0:01:26.6]} 29... b5 {[%clk 0:00:37.3]} 30. Nf3 {[%clk 0:01:23.1]}
30... f4 {[%clk 0:00:29]} 31. Rd1 {[%clk 0:00:54.9]} 31... Qf5 {[%clk
0:00:27.1]} 32. Qd2 {[%clk 0:00:47.9]} 32... g5 {[%clk 0:00:23.9]} 33. Nd4
{[%clk 0:00:36]} 33... Qe5 {[%clk 0:00:20.3]} 34. Nf3 {[%clk 0:00:31.7]} 34...
Qf5 {[%clk 0:00:20]} 35. Qc3 {[%clk 0:00:17.5]} 35... Bg7 {[%clk 0:00:18.5]} 36.
Ne7+ {[%clk 0:00:16.5]} 1-0

[Event "Early-Titled-Tuesday-Blitz-March-19-2024"]
[Site "Chess.com"]
[Date "2024.03.19"]
[Round "4"]
[White "AsaHoffmann"]
[Black "edgarhay012"]
[Result "0-1"]
[WhiteElo "2440"]
[BlackElo "2652"]
[TimeControl "180+1"]
[EndTime "8:39:38 PDT"]
[Termination "edgarhay012 won on time"]

1. d4 {[%clk 0:02:55.8]} 1... Nf6 {[%clk 0:02:59.5]} 2. Bg5 {[%clk 0:02:52.7]}
2... b6 {[%clk 0:02:57]} 3. f3 {[%clk 0:02:51.3]} 3... d5 {[%clk 0:02:56.3]} 4.
c4 {[%clk 0:02:49.4]} 4... e6 {[%clk 0:02:55.7]} 5. Nc3 {[%clk 0:02:48.9]} 5...
Bb7 {[%clk 0:02:55.6]} 6. e4 {[%clk 0:02:47.6]} 6... dxe4 {[%clk 0:02:55.3]} 7.
fxe4 {[%clk 0:02:47.3]} 7... h6 {[%clk 0:02:54.4]} 8. Bxf6 {[%clk 0:02:45.9]}
8... gxf6 {[%clk 0:02:54.4]} 9. Nf3 {[%clk 0:02:41.2]} 9... Nd7 {[%clk
0:02:52.6]} 10. Be2 {[%clk 0:02:39.6]} 10... Bb4 {[%clk 0:02:52.4]} 11. Qb3
{[%clk 0:02:37.5]} 11... Bxc3+ {[%clk 0:02:52.3]} 12. Qxc3 {[%clk 0:02:36.8]}
12... Bxe4 {[%clk 0:02:51.3]} 13. O-O-O {[%clk 0:02:33.6]} 13... Qe7 {[%clk
0:02:48.2]} 14. Rhe1 {[%clk 0:02:27.8]} 14... O-O-O {[%clk 0:02:46.6]} 15. Bd3
{[%clk 0:02:08.2]} 15... Bb7 {[%clk 0:02:42.5]} 16. Be4 {[%clk 0:02:06.1]} 16...
Bxe4 {[%clk 0:02:41.1]} 17. Rxe4 {[%clk 0:02:05.7]} 17... f5 {[%clk 0:02:41.8]}
18. Re2 {[%clk 0:02:03.7]} 18... Nf6 {[%clk 0:02:40.3]} 19. d5 {[%clk
0:01:51.6]} 19... Ne4 {[%clk 0:02:38.8]} 20. Qd4 {[%clk 0:01:46.7]} 20... f6
{[%clk 0:02:08.5]} 21. Nd2 {[%clk 0:01:37.5]} 21... e5 {[%clk 0:02:05.9]} 22.
Qe3 {[%clk 0:01:33]} 22... Nxd2 {[%clk 0:02:02.8]} 23. Rexd2 {[%clk 0:01:31.2]}
23... Rhg8 {[%clk 0:02:02.9]} 24. g3 {[%clk 0:01:30.8]} 24... Rg4 {[%clk
0:02:02.2]} 25. b3 {[%clk 0:01:24]} 25... h5 {[%clk 0:02:02.6]} 26. Qf3 {[%clk
0:01:21.9]} 26... Qd7 {[%clk 0:02:00.1]} 27. h3 {[%clk 0:01:15.3]} 27... Rg5
{[%clk 0:01:58.5]} 28. Rf1 {[%clk 0:00:57]} 28... Rdg8 {[%clk 0:01:54.7]} 29. h4
{[%clk 0:00:55.6]} 29... Rxg3 {[%clk 0:01:45.5]} 30. Qxf5 {[%clk 0:00:55.2]}
30... R8g6 {[%clk 0:01:38.9]} 31. Qxh5 {[%clk 0:00:49.8]} 31... Kb7 {[%clk
0:01:37.3]} 32. Qf5 {[%clk 0:00:42.6]} 32... Qd6 {[%clk 0:01:27.5]} 33. Kb2
{[%clk 0:00:34.8]} 33... Rh6 {[%clk 0:01:22.3]} 34. Rdf2 {[%clk 0:00:28.1]}
34... Qc5 {[%clk 0:01:14.6]} 35. Qe4 {[%clk 0:00:22.3]} 35... Re3 {[%clk
0:01:10.5]} 36. Qc2 {[%clk 0:00:18.7]} 36... Qd4+ {[%clk 0:01:08.5]} 37. Kb1
{[%clk 0:00:17.6]} 37... e4 {[%clk 0:01:08.3]} 38. Rd2 {[%clk 0:00:15.8]} 38...
Qe5 {[%clk 0:01:07.3]} 39. Rfd1 {[%clk 0:00:15.6]} 39... Rc3 {[%clk 0:01:04.1]}
40. Qb2 {[%clk 0:00:15]} 40... e3 {[%clk 0:01:03.4]} 41. Re2 {[%clk 0:00:12.9]}
41... Rxh4 {[%clk 0:00:56.2]} 42. c5 {[%clk 0:00:07.3]} 42... Rd4 {[%clk
0:00:48.5]} 43. Rde1 {[%clk 0:00:06.6]} 43... Rxc5 {[%clk 0:00:43.3]} 44. Rxe3
{[%clk 0:00:05.8]} 44... Qxd5 {[%clk 0:00:43.9]} 0-1